[Event "Titled Tuesday Blitz December 20 Early 2022"]
[White "Beca, Rodrigo Martins"]
[Black "Just_Lucky_1"]
[WhiteFideId "1954490"]
[WhiteElo "2976"]
[BlackElo "2484"]
[Result "1-0"]
[Round "03"]
[TimeControl "180+2"]
[Date "2022.12.20"]
[WhiteClock "0:00:13"]
[BlackClock "0:00:01"]

1. e4 {[%clk 0:02:53]}  c5 {[%clk 0:02:59]} 2. Nf3 {[%clk 0:02:53]}  d6 {[%clk 0:02:58]} 3. d4 {[%clk 0:02:53]}  cxd4 {[%clk 0:02:59]} 4. Nxd4 {[%clk 0:02:53]}  Nf6 {[%clk 0:02:59]} 5. Nc3 {[%clk 0:02:53]}  a6 {[%clk 0:03:00]} 6. Bc4 {[%clk 0:02:53]}  e6 {[%clk 0:02:59]} 7. Bb3 {[%clk 0:02:52]}  Nbd7 {[%clk 0:02:56]} 8. g4 {[%clk 0:02:47]}  Nc5 {[%clk 0:02:56]} 9. Qe2 {[%clk 0:02:47]}  b5 {[%clk 0:02:54]} 10. g5 {[%clk 0:02:44]}  Nfd7 {[%clk 0:02:53]} 11. h4 {[%clk 0:02:44]}  Bb7 {[%clk 0:02:54]} 12. f3 {[%clk 0:02:43]}  Qc7 {[%clk 0:02:46]} 13. Be3 {[%clk 0:02:42]}  Nb6 {[%clk 0:02:23]} 14. a3 {[%clk 0:02:40]}  Nxb3 {[%clk 0:02:20]} 15. cxb3 {[%clk 0:02:41]}  d5 {[%clk 0:02:16]} 16. e5 {[%clk 0:02:03]}  Qxe5 {[%clk 0:02:01]} 17. f4 {[%clk 0:01:58]}  Qd6 {[%clk 0:01:51]} 18. h5 {[%clk 0:01:50]}  Nd7 {[%clk 0:01:30]} 19. O-O-O {[%clk 0:01:34]}  O-O-O {[%clk 0:01:27]} 20. Kb1 {[%clk 0:01:30]}  f6 {[%clk 0:00:57]} 21. Ncxb5 {[%clk 0:01:05]}  axb5 {[%clk 0:00:54]} 22. Rc1+ {[%clk 0:01:05]}  Kb8 {[%clk 0:00:54]} 23. Qxb5 {[%clk 0:01:05]}  Qb6 {[%clk 0:00:27]} 24. Qxb6 {[%clk 0:00:40]}  Nxb6 {[%clk 0:00:28]} 25. Nxe6 {[%clk 0:00:40]}  d4 {[%clk 0:00:27]} 26. Rhd1 {[%clk 0:00:34]}  Be4+ {[%clk 0:00:21]} 27. Ka2 {[%clk 0:00:34]}  Rd6 {[%clk 0:00:11]} 28. Nxd4 {[%clk 0:00:32]}  Be7 {[%clk 0:00:10]} 29. Re1 {[%clk 0:00:21]}  Bd5 {[%clk 0:00:03]} 30. Nf5 {[%clk 0:00:15]}  Re6 {[%clk 0:00:01]} 31. Bxb6 {[%clk 0:00:13]}  Rxb6 {[%clk 0:00:01]} 32. Rxe7 {[%clk 0:00:13]} 1-0


[Site "https://www.chess.com"]

[Event "Titled Tuesday Blitz December 20 Early 2022"]
[White "BetonCarlsen"]
[Black "Gnechko_Ruslan"]
[WhiteElo "2216"]
[BlackElo "2448"]
[Result "0-1"]
[Round "03"]
[TimeControl "180+2"]
[Date "2022.12.20"]
[WhiteClock "0:01:07"]
[BlackClock "0:01:43"]

1. d4 {[%clk 0:02:39]}  Nf6 {[%clk 0:02:51]} 2. Nf3 {[%clk 0:02:39]}  e6 {[%clk 0:02:50]} 3. c4 {[%clk 0:02:38]}  b6 {[%clk 0:02:49]} 4. g3 {[%clk 0:02:36]}  Ba6 {[%clk 0:02:48]} 5. Nbd2 {[%clk 0:02:33]}  Be7 {[%clk 0:02:45]} 6. Bg2 {[%clk 0:02:32]}  c6 {[%clk 0:02:46]} 7. e4 {[%clk 0:02:30]}  d5 {[%clk 0:02:40]} 8. e5 {[%clk 0:02:30]}  Nfd7 {[%clk 0:02:37]} 9. Qc2 {[%clk 0:02:28]}  O-O {[%clk 0:02:35]} 10. h4 {[%clk 0:02:27]}  c5 {[%clk 0:02:32]} 11. Ng5 {[%clk 0:02:23]}  g6 {[%clk 0:02:27]} 12. cxd5 {[%clk 0:02:19]}  exd5 {[%clk 0:02:11]} 13. Bxd5 {[%clk 0:02:16]}  Nxe5 {[%clk 0:02:12]} 14. Bxa8 {[%clk 0:02:08]}  Nd3+ {[%clk 0:02:11]} 15. Kd1 {[%clk 0:02:02]}  Nxf2+ {[%clk 0:02:11]} 16. Ke1 {[%clk 0:01:59]}  Nd3+ {[%clk 0:02:04]} 17. Kd1 {[%clk 0:01:58]}  Bxg5 {[%clk 0:02:05]} 18. hxg5 {[%clk 0:01:46]}  Nf2+ {[%clk 0:02:02]} 19. Ke1 {[%clk 0:01:45]}  Nxh1 {[%clk 0:02:02]} 20. Bxh1 {[%clk 0:01:43]}  Qxd4 {[%clk 0:01:50]} 21. Ne4 {[%clk 0:01:12]}  Qg1+ {[%clk 0:01:47]} 22. Kd2 {[%clk 0:01:08]}  Rd8+ {[%clk 0:01:45]} 23. Kc3 {[%clk 0:01:07]}  Qd4+ {[%clk 0:01:43]} 24. Kb3 {[%clk 0:01:07]}  Qb4# {[%clk 0:01:43]} 0-1


[Site "https://www.chess.com"]

[Event "Titled Tuesday Blitz December 20 Early 2022"]
[White "Canche Cab, Marco Alexei"]
[Black "PavelChernomordik"]
[WhiteFideId "5116139"]
[WhiteElo "2004"]
[BlackElo "2434"]
[Result "1-0"]
[Round "03"]
[TimeControl "180+2"]
[Date "2022.12.20"]
[WhiteClock "0:00:03"]
[BlackClock "0:00:05"]

1. d4 {[%clk 0:02:58]}  g6 {[%clk 0:02:59]} 2. e4 {[%clk 0:02:57]}  Bg7 {[%clk 0:02:58]} 3. Nf3 {[%clk 0:02:57]}  d6 {[%clk 0:02:58]} 4. Bc4 {[%clk 0:02:58]}  e6 {[%clk 0:02:57]} 5. Bb3 {[%clk 0:02:57]}  b6 {[%clk 0:02:54]} 6. O-O {[%clk 0:02:54]}  Bb7 {[%clk 0:02:54]} 7. Re1 {[%clk 0:02:54]}  Nd7 {[%clk 0:02:53]} 8. Nbd2 {[%clk 0:02:51]}  Ne7 {[%clk 0:02:50]} 9. Nf1 {[%clk 0:02:47]}  O-O {[%clk 0:02:49]} 10. Ng3 {[%clk 0:02:46]}  c5 {[%clk 0:02:44]} 11. c3 {[%clk 0:02:45]}  Qc7 {[%clk 0:02:42]} 12. h4 {[%clk 0:02:40]}  Rac8 {[%clk 0:02:33]} 13. h5 {[%clk 0:02:34]}  cxd4 {[%clk 0:02:28]} 14. cxd4 {[%clk 0:02:34]}  Ba6 {[%clk 0:02:27]} 15. h6 {[%clk 0:01:41]}  Bh8 {[%clk 0:02:26]} 16. Bg5 {[%clk 0:01:42]}  Rfe8 {[%clk 0:02:24]} 17. Rc1 {[%clk 0:01:38]}  Qb7 {[%clk 0:02:20]} 18. Qd2 {[%clk 0:01:32]}  Nf6 {[%clk 0:02:07]} 19. Bxf6 {[%clk 0:01:03]}  Bxf6 {[%clk 0:02:06]} 20. e5 {[%clk 0:01:03]}  dxe5 {[%clk 0:02:04]} 21. dxe5 {[%clk 0:01:04]}  Bh8 {[%clk 0:01:59]} 22. Qg5 {[%clk 0:00:59]}  Nd5 {[%clk 0:01:37]} 23. Ne4 {[%clk 0:00:32]}  Rxc1 {[%clk 0:01:23]} 24. Rxc1 {[%clk 0:00:31]}  Qe7 {[%clk 0:01:22]} 25. Nd6 {[%clk 0:00:20]}  Qxg5 {[%clk 0:01:11]} 26. Nxg5 {[%clk 0:00:21]}  Rf8 {[%clk 0:01:09]} 27. Bxd5 {[%clk 0:00:14]}  exd5 {[%clk 0:01:08]} 28. f4 {[%clk 0:00:12]}  f6 {[%clk 0:00:50]} 29. Ne6 {[%clk 0:00:11]}  Rb8 {[%clk 0:00:49]} 30. Nc7 {[%clk 0:00:10]}  Bb7 {[%clk 0:00:35]} 31. Nxb7 {[%clk 0:00:06]}  Rxb7 {[%clk 0:00:34]} 32. Nxd5 {[%clk 0:00:07]}  fxe5 {[%clk 0:00:34]} 33. Rc8+ {[%clk 0:00:06]}  Kf7 {[%clk 0:00:33]} 34. Rxh8 {[%clk 0:00:07]}  Ke6 {[%clk 0:00:33]} 35. Nc3 {[%clk 0:00:04]}  exf4 {[%clk 0:00:32]} 36. Kf2 {[%clk 0:00:04]}  Kf5 {[%clk 0:00:31]} 37. Kf3 {[%clk 0:00:04]}  Rd7 {[%clk 0:00:30]} 38. Rf8+ {[%clk 0:00:04]}  Kg5 {[%clk 0:00:29]} 39. Ne4+ {[%clk 0:00:04]}  Kxh6 {[%clk 0:00:29]} 40. Rxf4 {[%clk 0:00:04]}  Rc7 {[%clk 0:00:28]} 41. Kg3 {[%clk 0:00:03]}  Kg7 {[%clk 0:00:24]} 42. Rf3 {[%clk 0:00:03]}  Rc2 {[%clk 0:00:23]} 43. Rf2 {[%clk 0:00:03]}  Rc4 {[%clk 0:00:22]} 44. Nd6 {[%clk 0:00:03]}  Rc6 {[%clk 0:00:20]} 45. Ne8+ {[%clk 0:00:03]}  Kg8 {[%clk 0:00:19]} 46. Nf6+ {[%clk 0:00:02]}  Kg7 {[%clk 0:00:18]} 47. Ne4 {[%clk 0:00:02]}  Rc4 {[%clk 0:00:18]} 48. Nc3 {[%clk 0:00:02]}  Rd4 {[%clk 0:00:17]} 49. Rf4 {[%clk 0:00:02]}  Rd2 {[%clk 0:00:17]} 50. Rf2 {[%clk 0:00:02]}  Rd3+ {[%clk 0:00:17]} 51. Kf4 {[%clk 0:00:02]}  Rd6 {[%clk 0:00:15]} 52. Ke5 {[%clk 0:00:02]}  Rd7 {[%clk 0:00:15]} 53. Ne4 {[%clk 0:00:02]}  Re7+ {[%clk 0:00:14]} 54. Kd5 {[%clk 0:00:03]}  Rd7+ {[%clk 0:00:13]} 55. Nd6 {[%clk 0:00:03]}  h5 {[%clk 0:00:11]} 56. Kc6 {[%clk 0:00:03]}  Re7 {[%clk 0:00:11]} 57. Nc8 {[%clk 0:00:03]}  Re4 {[%clk 0:00:09]} 58. Nxa7 {[%clk 0:00:02]}  Re6+ {[%clk 0:00:09]} 59. Kb5 {[%clk 0:00:02]}  h4 {[%clk 0:00:08]} 60. Nc6 {[%clk 0:00:02]}  g5 {[%clk 0:00:07]} 61. Kxb6 {[%clk 0:00:03]}  g4 {[%clk 0:00:07]} 62. a4 {[%clk 0:00:03]}  g3 {[%clk 0:00:07]} 63. Rf4 {[%clk 0:00:03]}  Re2 {[%clk 0:00:06]} 64. Rxh4 {[%clk 0:00:03]}  Rxb2+ {[%clk 0:00:06]} 65. Kc5 {[%clk 0:00:02]}  Rxg2 {[%clk 0:00:06]} 66. Rg4+ {[%clk 0:00:02]}  Kf6 {[%clk 0:00:06]} 67. a5 {[%clk 0:00:03]}  Rc2+ {[%clk 0:00:05]} 68. Kb6 {[%clk 0:00:03]}  g2 {[%clk 0:00:06]} 69. a6 {[%clk 0:00:03]}  Rb2+ {[%clk 0:00:05]} 70. Kc7 {[%clk 0:00:03]}  Kf5 {[%clk 0:00:05]} 71. Rg8 {[%clk 0:00:03]}  Ra2 {[%clk 0:00:05]} 72. a7 {[%clk 0:00:03]}  Kf4 {[%clk 0:00:05]} 73. Rxg2 {[%clk 0:00:03]}  Rxg2 {[%clk 0:00:04]} 74. a8=Q {[%clk 0:00:03]}  Rg7+ {[%clk 0:00:05]} 75. Kb6 {[%clk 0:00:03]} 1-0


[Site "https://www.chess.com"]

[Event "Titled Tuesday Blitz December 20 Early 2022"]
[White "Carvalho, Heracles Elieser"]
[Black "Truequitos"]
[WhiteFideId "22751114"]
[WhiteElo "1895"]
[BlackElo "2536"]
[Result "0-1"]
[Round "03"]
[TimeControl "180+2"]
[Date "2022.12.20"]
[WhiteClock "0:01:31"]
[BlackClock "0:02:27"]

1. e4 {[%clk 0:02:50]}  e6 {[%clk 0:03:00]} 2. d4 {[%clk 0:02:49]}  d5 {[%clk 0:03:00]} 3. Nd2 {[%clk 0:02:49]}  c5 {[%clk 0:03:00]} 4. Ngf3 {[%clk 0:02:49]}  cxd4 {[%clk 0:03:00]} 5. Nxd4 {[%clk 0:02:49]}  Nf6 {[%clk 0:02:59]} 6. e5 {[%clk 0:02:47]}  Nfd7 {[%clk 0:02:59]} 7. f4 {[%clk 0:02:46]}  Nxe5 {[%clk 0:02:59]} 8. N2f3 {[%clk 0:02:29]}  Nxf3+ {[%clk 0:02:58]} 9. Nxf3 {[%clk 0:02:30]}  Nc6 {[%clk 0:02:57]} 10. Be3 {[%clk 0:02:30]}  Qf6 {[%clk 0:02:51]} 11. Bd3 {[%clk 0:02:27]}  Bd6 {[%clk 0:02:41]} 12. O-O {[%clk 0:02:23]}  Bxf4 {[%clk 0:02:36]} 13. Bc5 {[%clk 0:01:49]}  Qxb2 {[%clk 0:02:30]} 14. Nd4 {[%clk 0:01:31]}  Be3+ {[%clk 0:02:27]} 0-1


[Site "https://www.chess.com"]

[Event "Titled Tuesday Blitz December 20 Early 2022"]
[White "Castro Andrade, Seirbert Cristian"]
[Black "Xiong, Jeffery"]
[WhiteFideId "3863336"]
[BlackFideId "2047640"]
[WhiteElo "1364"]
[BlackElo "2692"]
[Result "1-0"]
[Round "03"]
[TimeControl "180+2"]
[Date "2022.12.20"]
[WhiteClock "0:00:29"]
[BlackClock "0:00:57"]

1. c4 {[%clk 0:02:59]}  e6 {[%clk 0:02:59]} 2. d4 {[%clk 0:02:59]}  d5 {[%clk 0:02:59]} 3. Nc3 {[%clk 0:02:59]}  Nf6 {[%clk 0:03:00]} 4. Nf3 {[%clk 0:02:59]}  dxc4 {[%clk 0:02:57]} 5. e4 {[%clk 0:02:58]}  b5 {[%clk 0:02:57]} 6. e5 {[%clk 0:02:58]}  Nd5 {[%clk 0:02:57]} 7. Nxb5 {[%clk 0:02:58]}  Nb6 {[%clk 0:02:58]} 8. Be2 {[%clk 0:02:59]}  Nc6 {[%clk 0:02:58]} 9. O-O {[%clk 0:02:55]}  Be7 {[%clk 0:02:58]} 10. Be3 {[%clk 0:02:53]}  Qd7 {[%clk 0:02:57]} 11. Rc1 {[%clk 0:02:51]}  O-O {[%clk 0:02:54]} 12. Nc3 {[%clk 0:02:48]}  Bb7 {[%clk 0:02:51]} 13. b3 {[%clk 0:02:32]}  cxb3 {[%clk 0:02:50]} 14. axb3 {[%clk 0:02:32]}  Nb4 {[%clk 0:02:50]} 15. Qd2 {[%clk 0:02:29]}  Rfd8 {[%clk 0:02:50]} 16. Rfd1 {[%clk 0:02:28]}  N6d5 {[%clk 0:02:39]} 17. Nxd5 {[%clk 0:02:28]}  Bxd5 {[%clk 0:02:39]} 18. Rb1 {[%clk 0:02:20]}  Rab8 {[%clk 0:02:38]} 19. Ne1 {[%clk 0:02:19]}  Be4 {[%clk 0:02:31]} 20. Nd3 {[%clk 0:02:07]}  c5 {[%clk 0:02:28]} 21. Rbc1 {[%clk 0:01:51]}  cxd4 {[%clk 0:02:23]} 22. Nxb4 {[%clk 0:01:51]}  Rxb4 {[%clk 0:02:23]} 23. Rc4 {[%clk 0:01:44]}  Qb7 {[%clk 0:02:12]} 24. f3 {[%clk 0:01:39]}  Bg6 {[%clk 0:01:49]} 25. Bxd4 {[%clk 0:01:34]}  Rxb3 {[%clk 0:01:44]} 26. Qa5 {[%clk 0:01:29]}  Rb1 {[%clk 0:01:37]} 27. Rxb1 {[%clk 0:01:26]}  Qxb1+ {[%clk 0:01:36]} 28. Kf2 {[%clk 0:01:27]}  Qh1 {[%clk 0:01:21]} 29. Bc5 {[%clk 0:00:52]}  Bh4+ {[%clk 0:01:20]} 30. Rxh4 {[%clk 0:00:51]}  Rc8 {[%clk 0:01:14]} 31. Ba6 {[%clk 0:00:38]}  Rb8 {[%clk 0:01:13]} 32. Rb4 {[%clk 0:00:31]}  Re8 {[%clk 0:01:12]} 33. Bb5 {[%clk 0:00:29]}  Rc8 {[%clk 0:00:57]} 34. Bd7 {[%clk 0:00:29]} 1-0


[Site "https://www.chess.com"]

[Event "Titled Tuesday Blitz December 20 Early 2022"]
[White "Chesca, Alexandru"]
[Black "Forgacs, Gyula"]
[WhiteFideId "1214438"]
[BlackFideId "701203"]
[WhiteElo "1917"]
[BlackElo "2305"]
[Result "1-0"]
[Round "03"]
[TimeControl "180+2"]
[Date "2022.12.20"]
[WhiteClock "0:00:28"]
[BlackClock "0:00:01"]

1. Nf3 {[%clk 0:03:00]}  Nf6 {[%clk 0:03:00]} 2. c4 {[%clk 0:03:01]}  g6 {[%clk 0:02:59]} 3. Nc3 {[%clk 0:03:00]}  Bg7 {[%clk 0:03:00]} 4. g3 {[%clk 0:02:59]}  O-O {[%clk 0:03:00]} 5. Bg2 {[%clk 0:03:00]}  d6 {[%clk 0:03:01]} 6. d4 {[%clk 0:02:59]}  Nc6 {[%clk 0:03:01]} 7. O-O {[%clk 0:02:58]}  e5 {[%clk 0:03:01]} 8. d5 {[%clk 0:02:59]}  Nb8 {[%clk 0:03:01]} 9. e4 {[%clk 0:02:57]}  a5 {[%clk 0:03:02]} 10. Ne1 {[%clk 0:02:58]}  Na6 {[%clk 0:03:02]} 11. Nd3 {[%clk 0:02:58]}  Nd7 {[%clk 0:03:03]} 12. a3 {[%clk 0:02:52]}  Ndc5 {[%clk 0:02:59]} 13. Nxc5 {[%clk 0:02:48]}  Nxc5 {[%clk 0:02:59]} 14. b3 {[%clk 0:02:48]}  Bd7 {[%clk 0:02:51]} 15. Rb1 {[%clk 0:02:48]}  b6 {[%clk 0:02:39]} 16. b4 {[%clk 0:02:28]}  axb4 {[%clk 0:02:40]} 17. axb4 {[%clk 0:02:29]}  Na4 {[%clk 0:02:35]} 18. Nxa4 {[%clk 0:02:28]}  Rxa4 {[%clk 0:02:28]} 19. Qc2 {[%clk 0:02:27]}  Qa8 {[%clk 0:02:23]} 20. c5 {[%clk 0:02:24]}  Ra2 {[%clk 0:02:02]} 21. Qc3 {[%clk 0:02:23]}  bxc5 {[%clk 0:01:59]} 22. bxc5 {[%clk 0:02:21]}  Rb8 {[%clk 0:01:59]} 23. Be3 {[%clk 0:02:13]}  Bb5 {[%clk 0:01:38]} 24. Rfc1 {[%clk 0:02:08]}  Ra3 {[%clk 0:01:35]} 25. Qe1 {[%clk 0:01:51]}  Bf8 {[%clk 0:01:21]} 26. cxd6 {[%clk 0:01:45]}  Bxd6 {[%clk 0:01:20]} 27. h4 {[%clk 0:01:43]}  Bd3 {[%clk 0:01:04]} 28. Rxb8+ {[%clk 0:01:41]}  Qxb8 {[%clk 0:01:05]} 29. Bh6 {[%clk 0:01:18]}  Qb2 {[%clk 0:00:45]} 30. Bf1 {[%clk 0:01:17]}  Bxf1 {[%clk 0:00:26]} 31. Qxf1 {[%clk 0:01:17]}  Qd4 {[%clk 0:00:19]} 32. Qb5 {[%clk 0:01:14]}  Rxg3+ {[%clk 0:00:15]} 33. Kf1 {[%clk 0:01:04]}  Qd3+ {[%clk 0:00:11]} 34. Qxd3 {[%clk 0:01:04]}  Rxd3 {[%clk 0:00:12]} 35. Rb1 {[%clk 0:01:04]}  f5 {[%clk 0:00:13]} 36. Rb8+ {[%clk 0:01:01]}  Kf7 {[%clk 0:00:13]} 37. Rh8 {[%clk 0:01:02]}  fxe4 {[%clk 0:00:11]} 38. Rxh7+ {[%clk 0:01:02]}  Kf6 {[%clk 0:00:11]} 39. Ke2 {[%clk 0:01:01]}  Rxd5 {[%clk 0:00:09]} 40. Be3 {[%clk 0:00:55]}  Ra5 {[%clk 0:00:08]} 41. Kf1 {[%clk 0:00:54]}  Ra1+ {[%clk 0:00:07]} 42. Kg2 {[%clk 0:00:54]}  Ra2 {[%clk 0:00:08]} 43. Kg3 {[%clk 0:00:54]}  Ra3 {[%clk 0:00:07]} 44. Kg4 {[%clk 0:00:55]}  Rb3 {[%clk 0:00:07]} 45. Rh6 {[%clk 0:00:51]}  Kg7 {[%clk 0:00:05]} 46. h5 {[%clk 0:00:49]}  gxh5+ {[%clk 0:00:06]} 47. Rxh5 {[%clk 0:00:49]}  Rb1 {[%clk 0:00:07]} 48. Kf5 {[%clk 0:00:48]}  Kf7 {[%clk 0:00:06]} 49. Rh7+ {[%clk 0:00:47]}  Kg8 {[%clk 0:00:07]} 50. Rd7 {[%clk 0:00:47]}  Rg1 {[%clk 0:00:06]} 51. Kxe4 {[%clk 0:00:46]}  Rg7 {[%clk 0:00:05]} 52. Rd8+ {[%clk 0:00:46]}  Kh7 {[%clk 0:00:05]} 53. Kd5 {[%clk 0:00:44]}  Kg6 {[%clk 0:00:06]} 54. Ke6 {[%clk 0:00:40]}  Rf7 {[%clk 0:00:05]} 55. Rg8+ {[%clk 0:00:39]}  Rg7 {[%clk 0:00:06]} 56. Rh8 {[%clk 0:00:32]}  Rh7 {[%clk 0:00:05]} 57. Ra8 {[%clk 0:00:32]}  Rg7 {[%clk 0:00:02]} 58. Ra4 {[%clk 0:00:30]}  Kh5 {[%clk 0:00:02]} 59. Ra1 {[%clk 0:00:30]}  Rg4 {[%clk 0:00:01]} 60. Kf5 {[%clk 0:00:28]}  Rh4 {[%clk 0:00:01]} 61. Ra8 {[%clk 0:00:28]} 1-0


[Site "https://www.chess.com"]

[Event "Titled Tuesday Blitz December 20 Early 2022"]
[White "Chesstrainer1"]
[Black "vovachesss"]
[WhiteElo "2467"]
[BlackElo "2756"]
[Result "0-1"]
[Round "03"]
[TimeControl "180+2"]
[Date "2022.12.20"]
[WhiteClock "0:00:06"]
[BlackClock "0:00:30"]

1. e4 {[%clk 0:02:50]}  Nf6 {[%clk 0:02:57]} 2. e5 {[%clk 0:02:49]}  Nd5 {[%clk 0:02:57]} 3. d4 {[%clk 0:02:49]}  d6 {[%clk 0:02:58]} 4. Bc4 {[%clk 0:02:46]}  Nb6 {[%clk 0:02:57]} 5. Bb3 {[%clk 0:02:47]}  dxe5 {[%clk 0:02:57]} 6. Qh5 {[%clk 0:02:46]}  e6 {[%clk 0:02:57]} 7. dxe5 {[%clk 0:02:46]}  c5 {[%clk 0:02:58]} 8. Na3 {[%clk 0:02:35]}  Nc6 {[%clk 0:02:56]} 9. Nf3 {[%clk 0:02:32]}  g6 {[%clk 0:02:34]} 10. Qg4 {[%clk 0:02:27]}  h5 {[%clk 0:02:29]} 11. Qg3 {[%clk 0:02:24]}  Nd4 {[%clk 0:02:26]} 12. Nxd4 {[%clk 0:02:14]}  Qxd4 {[%clk 0:02:26]} 13. c3 {[%clk 0:02:11]}  Qe4+ {[%clk 0:02:20]} 14. Be3 {[%clk 0:02:11]}  Bg7 {[%clk 0:02:07]} 15. Bc2 {[%clk 0:01:28]}  Qxe5 {[%clk 0:01:51]} 16. Qxe5 {[%clk 0:01:28]}  Bxe5 {[%clk 0:01:50]} 17. Bxc5 {[%clk 0:01:29]}  Bd7 {[%clk 0:01:43]} 18. O-O-O {[%clk 0:01:15]}  Bc6 {[%clk 0:01:40]} 19. f3 {[%clk 0:01:13]}  Nd7 {[%clk 0:01:32]} 20. Be3 {[%clk 0:00:59]}  Ke7 {[%clk 0:01:17]} 21. Nc4 {[%clk 0:00:58]}  Bc7 {[%clk 0:01:16]} 22. a4 {[%clk 0:00:55]}  Rhd8 {[%clk 0:01:11]} 23. Bg5+ {[%clk 0:00:43]}  f6 {[%clk 0:01:07]} 24. Be3 {[%clk 0:00:44]}  Bd5 {[%clk 0:00:59]} 25. Bb3 {[%clk 0:00:35]}  b6 {[%clk 0:00:43]} 26. Rhe1 {[%clk 0:00:34]}  a6 {[%clk 0:00:42]} 27. h4 {[%clk 0:00:24]}  b5 {[%clk 0:00:41]} 28. axb5 {[%clk 0:00:24]}  axb5 {[%clk 0:00:42]} 29. Nd2 {[%clk 0:00:24]}  Ne5 {[%clk 0:00:37]} 30. Bc5+ {[%clk 0:00:13]}  Kf7 {[%clk 0:00:35]} 31. Bxd5 {[%clk 0:00:13]}  Nd3+ {[%clk 0:00:32]} 32. Kb1 {[%clk 0:00:11]}  Rxd5 {[%clk 0:00:32]} 33. Re2 {[%clk 0:00:08]}  Nxc5 {[%clk 0:00:32]} 34. Kc2 {[%clk 0:00:05]}  Rad8 {[%clk 0:00:30]} 35. Ra1 {[%clk 0:00:05]}  Rxd2+ {[%clk 0:00:29]} 36. Rxd2 {[%clk 0:00:06]}  Rxd2+ {[%clk 0:00:30]} 0-1


[Site "https://www.chess.com"]

[Event "Titled Tuesday Blitz December 20 Early 2022"]
[White "Coda, Carlos"]
[Black "Badlyplayed"]
[WhiteFideId "110329"]
[WhiteElo "1971"]
[BlackElo "2262"]
[Result "1-0"]
[Round "03"]
[TimeControl "180+2"]
[Date "2022.12.20"]
[WhiteClock "0:00:58"]
[BlackClock "0:00:10"]

1. c4 {[%clk 0:02:54]}  g6 {[%clk 0:02:58]} 2. g3 {[%clk 0:02:51]}  Bg7 {[%clk 0:02:58]} 3. Bg2 {[%clk 0:02:48]}  e5 {[%clk 0:02:57]} 4. Nc3 {[%clk 0:02:48]}  d6 {[%clk 0:02:57]} 5. e4 {[%clk 0:02:48]}  f5 {[%clk 0:02:49]} 6. d3 {[%clk 0:02:46]}  Nf6 {[%clk 0:02:48]} 7. Nge2 {[%clk 0:02:43]}  O-O {[%clk 0:02:46]} 8. O-O {[%clk 0:02:43]}  c6 {[%clk 0:02:47]} 9. h3 {[%clk 0:02:30]}  Be6 {[%clk 0:02:44]} 10. b3 {[%clk 0:02:27]}  a5 {[%clk 0:02:22]} 11. Be3 {[%clk 0:02:27]}  Qd7 {[%clk 0:01:55]} 12. Kh2 {[%clk 0:02:24]}  Na6 {[%clk 0:01:34]} 13. Qd2 {[%clk 0:02:20]}  Rae8 {[%clk 0:01:23]} 14. Rad1 {[%clk 0:02:12]}  d5 {[%clk 0:01:01]} 15. cxd5 {[%clk 0:02:03]}  cxd5 {[%clk 0:01:00]} 16. exd5 {[%clk 0:02:02]}  Nxd5 {[%clk 0:00:58]} 17. Bh6 {[%clk 0:01:54]}  f4 {[%clk 0:00:35]} 18. Bxg7 {[%clk 0:01:52]}  Kxg7 {[%clk 0:00:34]} 19. Ng1 {[%clk 0:01:30]}  Nab4 {[%clk 0:00:24]} 20. a3 {[%clk 0:01:25]}  Nc6 {[%clk 0:00:24]} 21. Rfe1 {[%clk 0:01:15]}  Nd4 {[%clk 0:00:16]} 22. Rxe5 {[%clk 0:01:09]}  fxg3+ {[%clk 0:00:15]} 23. fxg3 {[%clk 0:01:09]}  Nxc3 {[%clk 0:00:10]} 24. Qxc3 {[%clk 0:01:05]}  Rf2 {[%clk 0:00:10]} 25. Re4 {[%clk 0:00:58]} 1-0


[Site "https://www.chess.com"]

[Event "Titled Tuesday Blitz December 20 Early 2022"]
[White "CristobalBlanco"]
[Black "Garma, Chito"]
[BlackFideId "5200342"]
[WhiteElo "2476"]
[BlackElo "2345"]
[Result "0-1"]
[Round "03"]
[TimeControl "180+2"]
[Date "2022.12.20"]
[WhiteClock "0:00:04"]
[BlackClock "0:01:25"]

1. e4 {[%clk 0:03:00]}  Nc6 {[%clk 0:02:55]} 2. Nf3 {[%clk 0:02:58]}  d6 {[%clk 0:02:54]} 3. d4 {[%clk 0:02:57]}  Nf6 {[%clk 0:02:54]} 4. Nc3 {[%clk 0:02:52]}  Bg4 {[%clk 0:02:53]} 5. Be3 {[%clk 0:02:51]}  e6 {[%clk 0:02:53]} 6. Be2 {[%clk 0:02:50]}  Be7 {[%clk 0:02:52]} 7. Qd2 {[%clk 0:02:48]}  O-O {[%clk 0:02:52]} 8. O-O-O {[%clk 0:02:48]}  d5 {[%clk 0:02:51]} 9. e5 {[%clk 0:02:35]}  Ne4 {[%clk 0:02:46]} 10. Nxe4 {[%clk 0:02:25]}  dxe4 {[%clk 0:02:47]} 11. Ne1 {[%clk 0:02:25]}  Bxe2 {[%clk 0:02:47]} 12. Qxe2 {[%clk 0:02:25]}  Qd5 {[%clk 0:02:44]} 13. b3 {[%clk 0:02:14]}  Qa5 {[%clk 0:02:37]} 14. Kb1 {[%clk 0:02:06]}  Nb4 {[%clk 0:02:33]} 15. a4 {[%clk 0:02:04]}  Nd5 {[%clk 0:02:29]} 16. Bd2 {[%clk 0:01:56]}  Bb4 {[%clk 0:02:28]} 17. c4 {[%clk 0:01:39]}  Bxd2 {[%clk 0:02:21]} 18. Qxd2 {[%clk 0:01:38]}  Nb4 {[%clk 0:02:14]} 19. Nc2 {[%clk 0:01:32]}  Nc6 {[%clk 0:02:14]} 20. Qxa5 {[%clk 0:01:29]}  Nxa5 {[%clk 0:02:15]} 21. Kb2 {[%clk 0:01:29]}  f5 {[%clk 0:02:15]} 22. f4 {[%clk 0:01:23]}  exf3 {[%clk 0:02:07]} 23. gxf3 {[%clk 0:01:22]}  f4 {[%clk 0:02:08]} 24. Rhg1 {[%clk 0:01:21]}  Rad8 {[%clk 0:02:07]} 25. Rg4 {[%clk 0:01:20]}  c5 {[%clk 0:02:06]} 26. Rdg1 {[%clk 0:01:12]}  g6 {[%clk 0:02:04]} 27. dxc5 {[%clk 0:01:11]}  Nc6 {[%clk 0:02:02]} 28. Rg5 {[%clk 0:01:06]}  Rd2 {[%clk 0:02:01]} 29. R1g2 {[%clk 0:00:51]}  Rxg2 {[%clk 0:02:00]} 30. Rxg2 {[%clk 0:00:52]}  Nxe5 {[%clk 0:02:01]} 31. Nd4 {[%clk 0:00:51]}  Nd3+ {[%clk 0:01:58]} 32. Kc3 {[%clk 0:00:51]}  Nxc5 {[%clk 0:01:58]} 33. b4 {[%clk 0:00:48]}  Nxa4+ {[%clk 0:01:57]} 34. Kb3 {[%clk 0:00:48]}  Nb6 {[%clk 0:01:58]} 35. Nxe6 {[%clk 0:00:47]}  Re8 {[%clk 0:01:58]} 36. Re2 {[%clk 0:00:45]}  g5 {[%clk 0:01:56]} 37. Re5 {[%clk 0:00:40]}  h6 {[%clk 0:01:53]} 38. Re4 {[%clk 0:00:37]}  Kf7 {[%clk 0:01:48]} 39. Nc5 {[%clk 0:00:27]}  Rxe4 {[%clk 0:01:48]} 40. Nxe4 {[%clk 0:00:28]}  Nd7 {[%clk 0:01:49]} 41. Nd6+ {[%clk 0:00:25]}  Ke7 {[%clk 0:01:49]} 42. Nxb7 {[%clk 0:00:26]}  Ne5 {[%clk 0:01:49]} 43. c5 {[%clk 0:00:16]}  g4 {[%clk 0:01:44]} 44. Nd6 {[%clk 0:00:12]}  Nxf3 {[%clk 0:01:30]} 45. Nf5+ {[%clk 0:00:05]}  Ke6 {[%clk 0:01:28]} 46. Nxh6 {[%clk 0:00:04]}  g3 {[%clk 0:01:28]} 47. c6 {[%clk 0:00:05]}  gxh2 {[%clk 0:01:25]} 48. c7 {[%clk 0:00:03]}  Kd7 {[%clk 0:01:25]} 49. Ng4 {[%clk 0:00:04]}  h1=Q {[%clk 0:01:25]} 0-1


[Site "https://www.chess.com"]